[Event "Titled Tuesday Blitz June 13 Early 2023"]
[White "Vifleemskaia, Svetlana"]
[Black "Gomes, Luiz Alexandre de Souza"]
[WhiteFideId "4129490"]
[BlackFideId "2102790"]
[WhiteElo "1930"]
[BlackElo "2487"]
[Result "0-1"]
[Round "11"]
[TimeControl "180+2"]
[Date "2023.06.13"]
[WhiteClock "0:00:00"]
[BlackClock "0:00:03"]
[Board "113"]

1. d4 {[%clk 0:02:50]}  Nf6 {[%clk 0:02:59]} 2. c4 {[%clk 0:02:50]}  c5 {[%clk 0:03:00]} 3. d5 {[%clk 0:02:50]}  b5 {[%clk 0:03:00]} 4. Qc2 {[%clk 0:02:49]}  d6 {[%clk 0:03:00]} 5. e4 {[%clk 0:02:49]}  g6 {[%clk 0:03:00]} 6. b3 {[%clk 0:02:49]}  Bg7 {[%clk 0:03:00]} 7. Bb2 {[%clk 0:02:49]}  O-O {[%clk 0:03:00]} 8. Nd2 {[%clk 0:02:50]}  Na6 {[%clk 0:02:55]} 9. a3 {[%clk 0:02:49]}  bxc4 {[%clk 0:02:55]} 10. bxc4 {[%clk 0:02:49]}  Rb8 {[%clk 0:02:54]} 11. Bc3 {[%clk 0:02:49]}  Nc7 {[%clk 0:02:42]} 12. Ngf3 {[%clk 0:02:39]}  e6 {[%clk 0:02:42]} 13. Bd3 {[%clk 0:02:07]}  exd5 {[%clk 0:02:40]} 14. exd5 {[%clk 0:02:07]}  Re8+ {[%clk 0:02:39]} 15. Kf1 {[%clk 0:02:07]}  Ng4 {[%clk 0:02:15]} 16. h3 {[%clk 0:01:58]}  Ne5 {[%clk 0:02:12]} 17. Nxe5 {[%clk 0:01:57]}  Bxe5 {[%clk 0:02:13]} 18. Nf3 {[%clk 0:01:49]}  Bxc3 {[%clk 0:01:47]} 19. Qxc3 {[%clk 0:01:48]}  Bd7 {[%clk 0:01:48]} 20. g3 {[%clk 0:01:45]}  Qc8 {[%clk 0:01:32]} 21. Kg2 {[%clk 0:01:43]}  Na8 {[%clk 0:01:08]} 22. Qf6 {[%clk 0:01:32]}  Ba4 {[%clk 0:00:45]} 23. Qxd6 {[%clk 0:01:21]}  Nb6 {[%clk 0:00:39]} 24. Rhe1 {[%clk 0:01:15]}  Rd8 {[%clk 0:00:15]} 25. Qe5 {[%clk 0:01:09]}  Bb3 {[%clk 0:00:13]} 26. Rac1 {[%clk 0:01:00]}  Qa6 {[%clk 0:00:12]} 27. Ng5 {[%clk 0:00:39]}  Rf8 {[%clk 0:00:09]} 28. Ne4 {[%clk 0:00:36]}  Nd7 {[%clk 0:00:09]} 29. Qc7 {[%clk 0:00:24]}  Ba4 {[%clk 0:00:09]} 30. Nxc5 {[%clk 0:00:19]}  Nxc5 {[%clk 0:00:08]} 31. Qxc5 {[%clk 0:00:19]}  Rbc8 {[%clk 0:00:08]} 32. Qd4 {[%clk 0:00:19]}  Bd7 {[%clk 0:00:06]} 33. c5 {[%clk 0:00:18]}  Qxa3 {[%clk 0:00:06]} 34. c6 {[%clk 0:00:18]}  Be8 {[%clk 0:00:06]} 35. Be4 {[%clk 0:00:16]}  Rd8 {[%clk 0:00:06]} 36. Red1 {[%clk 0:00:14]}  Qd6 {[%clk 0:00:06]} 37. Bf3 {[%clk 0:00:14]}  f5 {[%clk 0:00:05]} 38. c7 {[%clk 0:00:13]}  Rc8 {[%clk 0:00:05]} 39. Qc5 {[%clk 0:00:13]}  Qxc5 {[%clk 0:00:05]} 40. Rxc5 {[%clk 0:00:13]}  Bd7 {[%clk 0:00:06]} 41. d6 {[%clk 0:00:12]}  Rfe8 {[%clk 0:00:06]} 42. Bd5+ {[%clk 0:00:11]}  Kg7 {[%clk 0:00:06]} 43. Ra5 {[%clk 0:00:10]}  Kf6 {[%clk 0:00:04]} 44. f4 {[%clk 0:00:08]}  Re2+ {[%clk 0:00:03]} 45. Kf3 {[%clk 0:00:08]}  Rc2 {[%clk 0:00:03]} 46. Rxa7 {[%clk 0:00:07]}  Rc3+ {[%clk 0:00:04]} 47. Kf2 {[%clk 0:00:06]}  g5 {[%clk 0:00:04]} 48. fxg5+ {[%clk 0:00:06]}  Kxg5 {[%clk 0:00:04]} 49. Rd2 {[%clk 0:00:07]}  f4 {[%clk 0:00:04]} 50. gxf4+ {[%clk 0:00:06]}  Kxf4 {[%clk 0:00:05]} 51. Bg2 {[%clk 0:00:05]}  Rf8 {[%clk 0:00:05]} 52. Kg1 {[%clk 0:00:04]}  Rg8 {[%clk 0:00:04]} 53. Kh2 {[%clk 0:00:00]}  Rcg3 {[%clk 0:00:03]} 0-1


[Site "https://www.chess.com"]

[Event "Titled Tuesday Blitz June 13 Early 2023"]
[White "Seletsky, Grigory"]
[Black "Gonzalez Vega, Alejandro"]
[WhiteFideId "14112191"]
[BlackFideId "3510042"]
[WhiteElo "2491"]
[BlackElo "2317"]
[Result "1-0"]
[Round "11"]
[TimeControl "180+2"]
[Date "2023.06.13"]
[WhiteClock "0:00:25"]
[BlackClock "0:00:00"]
[Board "115"]

1. e4 {[%clk 0:02:58]}  c5 {[%clk 0:02:59]} 2. Nf3 {[%clk 0:02:59]}  a6 {[%clk 0:02:57]} 3. c3 {[%clk 0:02:57]}  Nf6 {[%clk 0:02:56]} 4. e5 {[%clk 0:02:57]}  Nd5 {[%clk 0:02:57]} 5. d4 {[%clk 0:02:57]}  cxd4 {[%clk 0:02:57]} 6. cxd4 {[%clk 0:02:57]}  e6 {[%clk 0:02:57]} 7. Nc3 {[%clk 0:02:56]}  Nxc3 {[%clk 0:02:56]} 8. bxc3 {[%clk 0:02:57]}  Qc7 {[%clk 0:02:57]} 9. Bd2 {[%clk 0:02:55]}  d6 {[%clk 0:02:57]} 10. exd6 {[%clk 0:02:52]}  Bxd6 {[%clk 0:02:57]} 11. Bd3 {[%clk 0:02:53]}  Nd7 {[%clk 0:02:57]} 12. O-O {[%clk 0:02:52]}  Nf6 {[%clk 0:02:57]} 13. Re1 {[%clk 0:02:51]}  O-O {[%clk 0:02:56]} 14. c4 {[%clk 0:02:50]}  b6 {[%clk 0:02:55]} 15. Ne5 {[%clk 0:02:40]}  Bb7 {[%clk 0:02:53]} 16. Rc1 {[%clk 0:02:32]}  Rad8 {[%clk 0:02:46]} 17. Qc2 {[%clk 0:02:19]}  h6 {[%clk 0:02:31]} 18. Bf4 {[%clk 0:02:01]}  Nh5 {[%clk 0:02:11]} 19. Be3 {[%clk 0:01:41]}  Nf6 {[%clk 0:02:11]} 20. h3 {[%clk 0:01:36]}  Bxe5 {[%clk 0:02:06]} 21. dxe5 {[%clk 0:01:36]}  Nd7 {[%clk 0:02:06]} 22. f4 {[%clk 0:01:35]}  Nc5 {[%clk 0:02:04]} 23. Bf1 {[%clk 0:01:34]}  Rd7 {[%clk 0:01:56]} 24. Rcd1 {[%clk 0:01:34]}  Rfd8 {[%clk 0:01:54]} 25. Rxd7 {[%clk 0:01:34]}  Rxd7 {[%clk 0:01:50]} 26. Rd1 {[%clk 0:01:34]}  Qc6 {[%clk 0:01:37]} 27. Rxd7 {[%clk 0:01:32]}  Nxd7 {[%clk 0:01:38]} 28. Qd2 {[%clk 0:01:30]}  h5 {[%clk 0:01:31]} 29. Qd4 {[%clk 0:01:22]}  g6 {[%clk 0:01:29]} 30. Bf2 {[%clk 0:01:16]}  Kg7 {[%clk 0:01:15]} 31. Bh4 {[%clk 0:01:13]}  Qc5 {[%clk 0:01:07]} 32. Qxc5 {[%clk 0:01:12]}  Nxc5 {[%clk 0:01:06]} 33. Bd8 {[%clk 0:01:07]}  Nd7 {[%clk 0:01:02]} 34. Be7 {[%clk 0:01:02]}  f6 {[%clk 0:00:56]} 35. Bd6 {[%clk 0:00:54]}  fxe5 {[%clk 0:00:54]} 36. fxe5 {[%clk 0:00:54]}  Be4 {[%clk 0:00:46]} 37. h4 {[%clk 0:00:51]}  a5 {[%clk 0:00:43]} 38. Kf2 {[%clk 0:00:50]}  Bb1 {[%clk 0:00:28]} 39. a3 {[%clk 0:00:49]}  g5 {[%clk 0:00:22]} 40. g3 {[%clk 0:00:48]}  Kg6 {[%clk 0:00:20]} 41. Be2 {[%clk 0:00:37]}  gxh4 {[%clk 0:00:19]} 42. gxh4 {[%clk 0:00:37]}  Be4 {[%clk 0:00:18]} 43. Ke3 {[%clk 0:00:36]}  Bf5 {[%clk 0:00:17]} 44. Kf4 {[%clk 0:00:35]}  Bc2 {[%clk 0:00:15]} 45. Bc7 {[%clk 0:00:33]}  Bb1 {[%clk 0:00:14]} 46. Bf3 {[%clk 0:00:34]}  Bf5 {[%clk 0:00:13]} 47. Bc6 {[%clk 0:00:33]}  Nc5 {[%clk 0:00:10]} 48. Bxb6 {[%clk 0:00:32]}  Nd3+ {[%clk 0:00:10]} 49. Ke3 {[%clk 0:00:29]}  Nxe5 {[%clk 0:00:11]} 50. Bb5 {[%clk 0:00:29]}  a4 {[%clk 0:00:09]} 51. c5 {[%clk 0:00:28]}  Bc2 {[%clk 0:00:09]} 52. c6 {[%clk 0:00:27]}  Nxc6 {[%clk 0:00:06]} 53. Bxc6 {[%clk 0:00:27]}  Kf5 {[%clk 0:00:07]} 54. Bf3 {[%clk 0:00:23]}  Kg6 {[%clk 0:00:05]} 55. Kf4 {[%clk 0:00:22]}  Bf5 {[%clk 0:00:04]} 56. Bd4 {[%clk 0:00:23]}  Bc2 {[%clk 0:00:01]} 57. Be5 {[%clk 0:00:23]}  Bb1 {[%clk 0:00:01]} 58. Be4+ {[%clk 0:00:23]}  Bxe4 {[%clk 0:00:01]} 59. Kxe4 {[%clk 0:00:23]}  Kf7 {[%clk 0:00:02]} 60. Kf4 {[%clk 0:00:24]}  Kg6 {[%clk 0:00:02]} 61. Bd4 {[%clk 0:00:23]}  Kf7 {[%clk 0:00:01]} 62. Ke5 {[%clk 0:00:24]}  Ke7 {[%clk 0:00:01]} 63. Be3 {[%clk 0:00:24]}  Kf7 {[%clk 0:00:00]} 64. Bg5 {[%clk 0:00:25]} 1-0


[Site "https://www.chess.com"]

[Event "Titled Tuesday Blitz June 13 Early 2023"]
[White "Bueno, Alfeu Junior Varela"]
[Black "Rodriguez Santiago, Jaime"]
[WhiteFideId "2108879"]
[BlackFideId "3100898"]
[WhiteElo "2175"]
[BlackElo "2025"]
[Result "1-0"]
[Round "11"]
[TimeControl "180+2"]
[Date "2023.06.13"]
[WhiteClock "0:03:01"]
[BlackClock "0:01:23"]
[Board "117"]

1. e4 {[%clk 0:03:00]}  c6 {[%clk 0:02:59]} 2. d4 {[%clk 0:03:00]}  d5 {[%clk 0:02:58]} 3. f3 {[%clk 0:03:00]}  dxe4 {[%clk 0:02:57]} 4. fxe4 {[%clk 0:03:01]}  e5 {[%clk 0:02:58]} 5. Nf3 {[%clk 0:03:02]}  Bg4 {[%clk 0:02:57]} 6. Bc4 {[%clk 0:03:02]}  Nd7 {[%clk 0:02:55]} 7. c3 {[%clk 0:03:02]}  Ngf6 {[%clk 0:02:51]} 8. Qb3 {[%clk 0:03:03]}  Qe7 {[%clk 0:02:36]} 9. Qxb7 {[%clk 0:03:02]}  Rb8 {[%clk 0:02:35]} 10. Qxc6 {[%clk 0:03:02]}  exd4 {[%clk 0:02:30]} 11. O-O {[%clk 0:03:01]}  Bxf3 {[%clk 0:02:10]} 12. Rxf3 {[%clk 0:03:01]}  Qxe4 {[%clk 0:01:23]} 13. Rxf6 {[%clk 0:03:01]} 1-0


[Site "https://www.chess.com"]

[Event "Titled Tuesday Blitz June 13 Early 2023"]
[White "Putri, Regita Desyari"]
[Black "Szyszylo, Rafal"]
[WhiteFideId "7109083"]
[BlackFideId "1109626"]
[WhiteElo "1930"]
[BlackElo "1951"]
[Result "1-0"]
[Round "11"]
[TimeControl "180+2"]
[Date "2023.06.13"]
[WhiteClock "0:02:11"]
[BlackClock "0:00:30"]
[Board "118"]

1. e4 {[%clk 0:02:57]}  d6 {[%clk 0:02:59]} 2. d4 {[%clk 0:02:57]}  Nf6 {[%clk 0:02:59]} 3. Bd3 {[%clk 0:02:57]}  e5 {[%clk 0:02:57]} 4. d5 {[%clk 0:02:55]}  c6 {[%clk 0:02:46]} 5. c4 {[%clk 0:02:54]}  a5 {[%clk 0:02:44]} 6. Nc3 {[%clk 0:02:51]}  Na6 {[%clk 0:02:43]} 7. a3 {[%clk 0:02:48]}  Be7 {[%clk 0:02:42]} 8. Bc2 {[%clk 0:02:49]}  O-O {[%clk 0:02:41]} 9. Nf3 {[%clk 0:02:49]}  Nh5 {[%clk 0:02:27]} 10. Nxe5 {[%clk 0:02:45]}  dxe5 {[%clk 0:02:27]} 11. Qxh5 {[%clk 0:02:45]}  cxd5 {[%clk 0:02:26]} 12. cxd5 {[%clk 0:02:43]}  g6 {[%clk 0:02:21]} 13. Qe2 {[%clk 0:02:42]}  f5 {[%clk 0:02:12]} 14. Bh6 {[%clk 0:02:36]}  Re8 {[%clk 0:02:11]} 15. exf5 {[%clk 0:02:36]}  Bxf5 {[%clk 0:02:10]} 16. Bxf5 {[%clk 0:02:34]}  gxf5 {[%clk 0:02:10]} 17. O-O {[%clk 0:02:34]}  Qd6 {[%clk 0:01:57]} 18. Qh5 {[%clk 0:02:31]}  Qg6 {[%clk 0:01:50]} 19. Qxg6+ {[%clk 0:02:25]}  hxg6 {[%clk 0:01:51]} 20. Nb5 {[%clk 0:02:26]}  Rad8 {[%clk 0:01:47]} 21. Rfd1 {[%clk 0:02:23]}  e4 {[%clk 0:01:42]} 22. Be3 {[%clk 0:02:22]}  Nc5 {[%clk 0:01:39]} 23. d6 {[%clk 0:02:20]}  Bf6 {[%clk 0:00:59]} 24. Bxc5 {[%clk 0:02:19]}  Bxb2 {[%clk 0:00:59]} 25. Rab1 {[%clk 0:02:18]}  Bf6 {[%clk 0:00:57]} 26. Nc7 {[%clk 0:02:12]}  Re5 {[%clk 0:00:56]} 27. Bd4 {[%clk 0:02:08]}  Rxd6 {[%clk 0:00:54]} 28. Bxe5 {[%clk 0:02:07]}  Bxe5 {[%clk 0:00:51]} 29. Rxd6 {[%clk 0:02:07]}  Bxd6 {[%clk 0:00:52]} 30. Nb5 {[%clk 0:02:08]}  Bc5 {[%clk 0:00:51]} 31. a4 {[%clk 0:02:08]}  Kf7 {[%clk 0:00:50]} 32. Rd1 {[%clk 0:02:09]}  Ke6 {[%clk 0:00:51]} 33. Kf1 {[%clk 0:02:09]}  f4 {[%clk 0:00:50]} 34. Ke2 {[%clk 0:02:10]}  g5 {[%clk 0:00:50]} 35. Nc7+ {[%clk 0:02:09]}  Ke7 {[%clk 0:00:48]} 36. Nd5+ {[%clk 0:02:09]}  Ke6 {[%clk 0:00:48]} 37. Nc3 {[%clk 0:02:09]}  e3 {[%clk 0:00:46]} 38. fxe3 {[%clk 0:02:09]}  Bxe3 {[%clk 0:00:46]} 39. Ne4 {[%clk 0:02:09]}  g4 {[%clk 0:00:45]} 40. h3 {[%clk 0:02:06]}  gxh3 {[%clk 0:00:44]} 41. gxh3 {[%clk 0:02:07]}  Ke5 {[%clk 0:00:43]} 42. Ng5 {[%clk 0:02:07]}  Kf5 {[%clk 0:00:42]} 43. Nf3 {[%clk 0:02:07]}  Ke4 {[%clk 0:00:42]} 44. Rd8 {[%clk 0:02:07]}  b6 {[%clk 0:00:41]} 45. Re8+ {[%clk 0:02:08]}  Kd5 {[%clk 0:00:41]} 46. h4 {[%clk 0:02:09]}  Kc4 {[%clk 0:00:41]} 47. h5 {[%clk 0:02:10]}  Kb4 {[%clk 0:00:40]} 48. h6 {[%clk 0:02:11]}  Kxa4 {[%clk 0:00:40]} 49. h7 {[%clk 0:02:12]}  Bd4 {[%clk 0:00:30]} 50. Nxd4 {[%clk 0:02:11]} 1-0


[Site "https://www.chess.com"]

[Event "Titled Tuesday Blitz June 13 Early 2023"]
[White "agvania123"]
[Black "Mrudul Dehankar"]
[BlackFideId "25096990"]
[WhiteElo "2264"]
[BlackElo "2139"]
[Result "0-1"]
[Round "11"]
[TimeControl "180+2"]
[Date "2023.06.13"]
[WhiteClock "0:01:12"]
[BlackClock "0:00:53"]
[Board "119"]

1. c4 {[%clk 0:02:59]}  e5 {[%clk 0:02:58]} 2. Nc3 {[%clk 0:02:59]}  Nf6 {[%clk 0:02:57]} 3. Nf3 {[%clk 0:03:00]}  Nc6 {[%clk 0:02:56]} 4. e4 {[%clk 0:03:00]}  Bc5 {[%clk 0:02:55]} 5. Nxe5 {[%clk 0:02:44]}  Nxe5 {[%clk 0:02:45]} 6. d4 {[%clk 0:02:44]}  Bb4 {[%clk 0:02:03]} 7. dxe5 {[%clk 0:02:42]}  Nxe4 {[%clk 0:02:03]} 8. Qf3 {[%clk 0:02:43]}  d5 {[%clk 0:01:42]} 9. a3 {[%clk 0:01:57]}  Bxc3+ {[%clk 0:01:33]} 10. bxc3 {[%clk 0:01:58]}  Be6 {[%clk 0:01:29]} 11. Bf4 {[%clk 0:01:43]}  c6 {[%clk 0:01:15]} 12. Be2 {[%clk 0:01:32]}  O-O {[%clk 0:01:11]} 13. O-O {[%clk 0:01:32]}  f5 {[%clk 0:01:02]} 14. exf6 {[%clk 0:01:31]}  Qxf6 {[%clk 0:00:59]} 15. Be3 {[%clk 0:01:14]}  Nxc3 {[%clk 0:00:56]} 16. Qxf6 {[%clk 0:01:12]}  Nxe2+ {[%clk 0:00:53]} 0-1


[Site "https://www.chess.com"]

[Event "Titled Tuesday Blitz June 13 Early 2023"]
[White "Buchenau, Frank"]
[Black "Mishra, Manoj"]
[WhiteFideId "4604350"]
[BlackFideId "5006007"]
[WhiteElo "2157"]
[BlackElo "1847"]
[Result "1-0"]
[Round "11"]
[TimeControl "180+2"]
[Date "2023.06.13"]
[WhiteClock "0:00:30"]
[BlackClock "0:00:02"]
[Board "121"]

1. e4 {[%clk 0:02:55]}  Nf6 {[%clk 0:02:57]} 2. e5 {[%clk 0:02:54]}  Nd5 {[%clk 0:02:56]} 3. d4 {[%clk 0:02:54]}  d6 {[%clk 0:02:55]} 4. Nf3 {[%clk 0:02:54]}  Nb6 {[%clk 0:02:50]} 5. a4 {[%clk 0:02:51]}  Bg4 {[%clk 0:02:41]} 6. a5 {[%clk 0:02:50]}  N6d7 {[%clk 0:02:40]} 7. h3 {[%clk 0:02:34]}  Bxf3 {[%clk 0:02:37]} 8. Qxf3 {[%clk 0:02:35]}  Nc6 {[%clk 0:02:37]} 9. c3 {[%clk 0:02:23]}  dxe5 {[%clk 0:02:35]} 10. a6 {[%clk 0:02:22]}  Qc8 {[%clk 0:01:40]} 11. Bb5 {[%clk 0:02:16]}  Ndb8 {[%clk 0:01:24]} 12. d5 {[%clk 0:02:15]}  bxa6 {[%clk 0:01:19]} 13. Ba4 {[%clk 0:02:12]}  e6 {[%clk 0:01:11]} 14. dxe6 {[%clk 0:02:10]}  Qxe6 {[%clk 0:01:06]} 15. O-O {[%clk 0:02:01]}  Bc5 {[%clk 0:00:52]} 16. Nd2 {[%clk 0:01:57]}  O-O {[%clk 0:00:48]} 17. Bb3 {[%clk 0:01:50]}  Qf6 {[%clk 0:00:48]} 18. Qxf6 {[%clk 0:01:45]}  gxf6 {[%clk 0:00:49]} 19. Ne4 {[%clk 0:01:45]}  Be7 {[%clk 0:00:49]} 20. Bh6 {[%clk 0:01:42]}  Rd8 {[%clk 0:00:45]} 21. Rfd1 {[%clk 0:01:36]}  f5 {[%clk 0:00:44]} 22. Ng5 {[%clk 0:01:32]}  Bxg5 {[%clk 0:00:38]} 23. Bxg5 {[%clk 0:01:33]}  Rxd1+ {[%clk 0:00:36]} 24. Rxd1 {[%clk 0:01:33]}  Kg7 {[%clk 0:00:36]} 25. f4 {[%clk 0:01:12]}  Na5 {[%clk 0:00:28]} 26. Bc2 {[%clk 0:00:55]}  h6 {[%clk 0:00:28]} 27. Bh4 {[%clk 0:00:52]}  Nbc6 {[%clk 0:00:24]} 28. Rd7 {[%clk 0:00:45]}  e4 {[%clk 0:00:22]} 29. b4 {[%clk 0:00:43]}  Nc4 {[%clk 0:00:21]} 30. Rxc7 {[%clk 0:00:43]}  Ne3 {[%clk 0:00:20]} 31. Bb3 {[%clk 0:00:43]}  Nd8 {[%clk 0:00:19]} 32. Kf2 {[%clk 0:00:39]}  Ne6 {[%clk 0:00:12]} 33. Bxe6 {[%clk 0:00:38]}  Nd1+ {[%clk 0:00:12]} 34. Ke2 {[%clk 0:00:37]}  Nxc3+ {[%clk 0:00:11]} 35. Rxc3 {[%clk 0:00:36]}  fxe6 {[%clk 0:00:12]} 36. Rc7+ {[%clk 0:00:36]}  Kg6 {[%clk 0:00:11]} 37. g4 {[%clk 0:00:36]}  fxg4 {[%clk 0:00:10]} 38. hxg4 {[%clk 0:00:36]}  Rb8 {[%clk 0:00:10]} 39. Rc6 {[%clk 0:00:33]}  Rxb4 {[%clk 0:00:10]} 40. f5+ {[%clk 0:00:32]}  Kg7 {[%clk 0:00:09]} 41. fxe6 {[%clk 0:00:30]}  e3 {[%clk 0:00:08]} 42. Rc7+ {[%clk 0:00:30]}  Kf8 {[%clk 0:00:07]} 43. Be7+ {[%clk 0:00:29]}  Ke8 {[%clk 0:00:02]} 44. Bxb4 {[%clk 0:00:30]} 1-0


[Site "https://www.chess.com"]

[Event "Titled Tuesday Blitz June 13 Early 2023"]
[White "Freile Martin, Javier"]
[Black "Petrova, Irina"]
[WhiteFideId "3600165"]
[BlackFideId "14124122"]
[WhiteElo "2320"]
[BlackElo "2084"]
[Result "0-1"]
[Round "11"]
[TimeControl "180+2"]
[Date "2023.06.13"]
[WhiteClock "0:00:18"]
[BlackClock "0:00:15"]
[Board "126"]

1. d4 {[%clk 0:03:00]}  d6 {[%clk 0:03:00]} 2. Nf3 {[%clk 0:02:59]}  g6 {[%clk 0:03:00]} 3. c4 {[%clk 0:02:58]}  Bg7 {[%clk 0:03:01]} 4. Nc3 {[%clk 0:02:58]}  Nc6 {[%clk 0:03:00]} 5. d5 {[%clk 0:02:57]}  Ne5 {[%clk 0:03:00]} 6. Nxe5 {[%clk 0:02:57]}  Bxe5 {[%clk 0:03:01]} 7. e4 {[%clk 0:02:56]}  Nf6 {[%clk 0:02:59]} 8. Be2 {[%clk 0:02:50]}  O-O {[%clk 0:02:58]} 9. Qc2 {[%clk 0:02:35]}  c6 {[%clk 0:02:54]} 10. O-O {[%clk 0:02:34]}  cxd5 {[%clk 0:02:47]} 11. cxd5 {[%clk 0:02:32]}  Bd7 {[%clk 0:02:47]} 12. Be3 {[%clk 0:02:29]}  Rc8 {[%clk 0:02:42]} 13. f3 {[%clk 0:02:29]}  b5 {[%clk 0:02:32]} 14. Qb3 {[%clk 0:02:23]}  a6 {[%clk 0:02:23]} 15. a4 {[%clk 0:02:19]}  Nh5 {[%clk 0:01:29]} 16. axb5 {[%clk 0:02:09]}  axb5 {[%clk 0:01:27]} 17. g3 {[%clk 0:01:58]}  b4 {[%clk 0:01:12]} 18. Na4 {[%clk 0:01:52]}  Rb8 {[%clk 0:01:04]} 19. f4 {[%clk 0:01:46]}  Bg7 {[%clk 0:01:04]} 20. Bxh5 {[%clk 0:01:45]}  gxh5 {[%clk 0:01:04]} 21. Qd1 {[%clk 0:01:38]}  Bg4 {[%clk 0:00:59]} 22. Qd2 {[%clk 0:01:36]}  Bd7 {[%clk 0:00:50]} 23. Bd4 {[%clk 0:01:35]}  Bxd4+ {[%clk 0:00:25]} 24. Qxd4 {[%clk 0:01:34]}  Bxa4 {[%clk 0:00:26]} 25. Rxa4 {[%clk 0:01:33]}  Qb6 {[%clk 0:00:26]} 26. Qxb6 {[%clk 0:01:29]}  Rxb6 {[%clk 0:00:27]} 27. Rc1 {[%clk 0:01:27]}  Rfb8 {[%clk 0:00:27]} 28. Kf2 {[%clk 0:01:26]}  Rb5 {[%clk 0:00:27]} 29. Rh1 {[%clk 0:01:20]}  Rc5 {[%clk 0:00:27]} 30. Re1 {[%clk 0:01:17]}  Rc2+ {[%clk 0:00:25]} 31. Re2 {[%clk 0:01:17]}  b3 {[%clk 0:00:25]} 32. Ra7 {[%clk 0:01:16]}  Rbc8 {[%clk 0:00:24]} 33. Rxe7 {[%clk 0:01:15]}  Rxe2+ {[%clk 0:00:23]} 34. Kxe2 {[%clk 0:01:15]}  Rc2+ {[%clk 0:00:24]} 35. Kf3 {[%clk 0:01:15]}  Rxb2 {[%clk 0:00:25]} 36. h4 {[%clk 0:01:09]}  Rb1 {[%clk 0:00:24]} 37. Rb7 {[%clk 0:01:08]}  b2 {[%clk 0:00:25]} 38. Kg2 {[%clk 0:01:06]}  Kg7 {[%clk 0:00:20]} 39. e5 {[%clk 0:01:03]}  dxe5 {[%clk 0:00:21]} 40. fxe5 {[%clk 0:01:03]}  Rd1 {[%clk 0:00:21]} 41. Rxb2 {[%clk 0:01:00]}  Rxd5 {[%clk 0:00:22]} 42. Re2 {[%clk 0:00:58]}  Kg6 {[%clk 0:00:21]} 43. Kh3 {[%clk 0:00:51]}  Kf5 {[%clk 0:00:19]} 44. Rf2+ {[%clk 0:00:51]}  Kg6 {[%clk 0:00:17]} 45. Rf6+ {[%clk 0:00:50]}  Kg7 {[%clk 0:00:17]} 46. Rf5 {[%clk 0:00:50]}  Kg6 {[%clk 0:00:16]} 47. Rg5+ {[%clk 0:00:50]}  Kh6 {[%clk 0:00:17]} 48. g4 {[%clk 0:00:43]}  Rd3+ {[%clk 0:00:16]} 49. Kg2 {[%clk 0:00:43]}  hxg4 {[%clk 0:00:16]} 50. Rxg4 {[%clk 0:00:42]}  Re3 {[%clk 0:00:16]} 51. Rg5 {[%clk 0:00:41]}  Re4 {[%clk 0:00:16]} 52. Kg3 {[%clk 0:00:41]}  Re3+ {[%clk 0:00:16]} 53. Kf4 {[%clk 0:00:40]}  Re1 {[%clk 0:00:16]} 54. Rf5 {[%clk 0:00:38]}  Kg6 {[%clk 0:00:15]} 55. h5+ {[%clk 0:00:38]}  Kg7 {[%clk 0:00:15]} 56. h6+ {[%clk 0:00:36]}  Kxh6 {[%clk 0:00:15]} 57. Rf6+ {[%clk 0:00:33]}  Kg7 {[%clk 0:00:14]} 58. Kg5 {[%clk 0:00:32]}  Rg1+ {[%clk 0:00:14]} 59. Kh5 {[%clk 0:00:30]}  Rh1+ {[%clk 0:00:14]} 60. Kg4 {[%clk 0:00:30]}  Rg1+ {[%clk 0:00:15]} 61. Kh4 {[%clk 0:00:30]}  Re1 {[%clk 0:00:15]} 62. Rf5 {[%clk 0:00:30]}  h6 {[%clk 0:00:15]} 63. Kg4 {[%clk 0:00:29]}  Kg6 {[%clk 0:00:15]} 64. Rf6+ {[%clk 0:00:29]}  Kg7 {[%clk 0:00:15]} 65. Rf5 {[%clk 0:00:29]}  Rg1+ {[%clk 0:00:15]} 66. Kh3 {[%clk 0:00:28]}  Rh1+ {[%clk 0:00:15]} 67. Kg4 {[%clk 0:00:28]}  Rg1+ {[%clk 0:00:15]} 68. Kh4 {[%clk 0:00:29]}  Rg6 {[%clk 0:00:15]} 69. Kh5 {[%clk 0:00:28]}  Re6 {[%clk 0:00:15]} 70. Kg4 {[%clk 0:00:28]}  Ra6 {[%clk 0:00:15]} 71. Rf3 {[%clk 0:00:25]}  Kg6 {[%clk 0:00:14]} 72. Rg3 {[%clk 0:00:25]}  Ra4+ {[%clk 0:00:14]} 73. Kf3+ {[%clk 0:00:25]}  Kf5 {[%clk 0:00:14]} 74. Rh3 {[%clk 0:00:25]}  Ra3+ {[%clk 0:00:14]} 75. Ke2 {[%clk 0:00:22]}  Rxh3 {[%clk 0:00:14]} 76. e6 {[%clk 0:00:18]}  Kxe6 {[%clk 0:00:15]} 0-1


[Site "https://www.chess.com"]

[Event "Titled Tuesday Blitz June 13 Early 2023"]
[White "Sarkar, Justin"]
[Black "Lopez Idarraga, Daniel Eduardo"]
[WhiteFideId "2010011"]
[BlackFideId "4405501"]
[WhiteElo "2151"]
[BlackElo "1980"]
[Result "0-1"]
[Round "11"]
[TimeControl "180+2"]
[Date "2023.06.13"]
[WhiteClock "0:00:00"]
[BlackClock "0:01:20"]
[Board "128"]

1. e4 {[%clk 0:02:37]}  c5 {[%clk 0:02:59]} 2. Nf3 {[%clk 0:02:36]}  Nc6 {[%clk 0:02:59]} 3. d4 {[%clk 0:02:35]}  cxd4 {[%clk 0:02:58]} 4. Nxd4 {[%clk 0:02:34]}  Nf6 {[%clk 0:02:59]} 5. Nc3 {[%clk 0:02:33]}  g6 {[%clk 0:02:59]} 6. Nxc6 {[%clk 0:02:30]}  bxc6 {[%clk 0:03:00]} 7. e5 {[%clk 0:02:28]}  Nh5 {[%clk 0:03:01]} 8. Bc4 {[%clk 0:02:25]}  d5 {[%clk 0:02:59]} 9. exd6 {[%clk 0:02:11]}  exd6 {[%clk 0:03:00]} 10. O-O {[%clk 0:02:06]}  d5 {[%clk 0:03:00]} 11. Nxd5 {[%clk 0:01:34]}  cxd5 {[%clk 0:03:01]} 12. Bxd5 {[%clk 0:01:34]}  Be6 {[%clk 0:02:36]} 13. Bc6+ {[%clk 0:01:31]}  Bd7 {[%clk 0:02:31]} 14. Re1+ {[%clk 0:01:22]}  Be7 {[%clk 0:02:31]} 15. Bxa8 {[%clk 0:00:53]}  Qxa8 {[%clk 0:02:32]} 16. Qd4 {[%clk 0:00:52]}  Rg8 {[%clk 0:01:43]} 17. Bg5 {[%clk 0:00:50]}  Be6 {[%clk 0:01:43]} 18. Bxe7 {[%clk 0:00:48]}  Kxe7 {[%clk 0:01:43]} 19. Rad1 {[%clk 0:00:47]}  g5 {[%clk 0:01:39]} 20. Qd6+ {[%clk 0:00:39]}  Kf6 {[%clk 0:01:36]} 21. Rd3 {[%clk 0:00:17]}  h6 {[%clk 0:01:31]} 22. Qe5+ {[%clk 0:00:07]}  Kg6 {[%clk 0:01:30]} 23. Qe4+ {[%clk 0:00:02]}  Qxe4 {[%clk 0:01:23]} 24. Rxe4 {[%clk 0:00:02]}  Bxa2 {[%clk 0:01:24]} 25. Ra4 {[%clk 0:00:00]}  Be6 {[%clk 0:01:20]} 0-1


[Site "https://www.chess.com"]